{"text_format":"1","workbook":"xlsx","n_sheets":1,"sheets":["206"],"not_rendered":{"charts":0,"images":0,"macros":1,"external_links":0,"defined_names":0,"comments":0,"pivot_tables":0},"unopened":[],"bounds":{"document_bytes":16777216,"sheet_cells":100000,"rows_first":2000,"rows_last":500,"rows_between":2000,"halvings":0,"cell_chars":16384,"cell_head_chars":4096},"cells_cut":0,"cells_raw":0,"read":"whole","date_system":"1900"}

{"sheet":"206","index":0,"n_rows":84,"n_cols":26,"rows_kept":84,"cut":false,"hidden":false,"merged":[[0,12,0,14],[9,14,10,15],[5,8,6,9],[9,0,10,5],[9,6,10,6],[9,8,10,10],[9,11,10,13],[2,0,3,1],[23,14,23,15],[11,0,11,5],[11,8,11,10],[11,14,11,15],[14,1,14,5],[14,8,14,10],[14,14,14,15],[17,8,17,10],[17,14,17,15],[22,1,22,5],[22,8,22,10],[22,14,22,15],[23,1,23,5],[23,8,23,10],[30,14,30,15],[31,1,31,5],[31,8,31,10],[31,14,31,15],[24,1,24,5],[24,8,24,10],[24,14,24,15],[25,1,25,5],[25,8,25,10],[25,14,25,15],[30,1,30,5],[30,8,30,10],[40,14,40,15],[34,1,34,5],[34,8,34,10],[34,14,34,15],[35,1,35,5],[35,8,35,10],[35,14,35,15],[36,13,37,13],[36,14,37,15],[39,1,39,5],[39,8,39,10],[39,14,39,15],[40,1,40,5],[40,8,40,10],[49,14,50,15],[41,1,41,5],[41,8,41,10],[42,8,42,10],[43,8,43,10],[44,1,44,5],[44,8,44,10],[45,1,45,5],[45,8,45,10],[46,1,46,5],[46,8,46,10]]}
["ピアザ淡海　滋賀県立県民交流センター",null,null,null,null,null,null,null,null,null,null,null,"2025-04-01",null,null,"改定"]
["■付帯設備使用申込書"]
[206,null,"会議室（操作卓なし）",null,null,null,null,null,"指定管理者",null,null,null,null,null,null," 株式会社 コンベンションリンケージ　"]
[null,null,null,null,"年","月","日","曜日",null,null,null,null,"h:mm",null,"h:mm","←記入例"]
[null,null,"利用日",null,null,null,null,null,null,null,"本番時間",null,null,"～"]
["備考",null,null,null,null,null,null,null,"使用区分",null,null,null,"午前　午後　夜間"]
[null,null,null,null,null,null,null,null,null,null,null,null,null,null,null,null,null,false,false,false,{"$f":"SUM(R7:T7)","v":0},false,false,false]
[]
["●電気使用料が発生した場合のみ"]
["品　　　　　　名",null,null,null,null,null,"単位","1区分","数　量",null,null,"区　分",null,null,"金　額"]
[null,null,null,null,null,null,null,"使用料",null,null,null,null,null,null,null,null,null,null,null,null,"計"]
[null,null,null,null,null,null,null,null,null,null,null,"A","P","N",{"$f":"IF(I12=\"\",\"\",H12*I12*U12)","v":""},null,{"$f":"\"コンセント\"&$I$12","v":"コンセント"},{"$f":"IF(V12,1)","v":false},{"$f":"IF(W12,1)","v":false},{"$f":"IF(X12,1)","v":false},{"$f":"SUM(R12:T12)","v":0},false,false,false,null,{"$f":"\"コンセント\"&$I$12","v":"コンセント"}]
[]
["●マイク",null,null,null,null,null,null,null,null,null,null,null,null,null,null,null,null,null,null,null,"計"]
["基本","ポータブルアンプ＆ワイヤレス\nハンドマイク２本",null,null,null,null,"１セット",470,null,null,null,"A","P","N",{"$f":"IF(I15=\"\",\"\",H15*I15*U15)","v":""},null,{"$f":"\"アンプ\"&$I$15","v":"アンプ"},{"$f":"IF(V15,1)","v":false},{"$f":"IF(W15,1)","v":false},false,{"$f":"SUM(R15:T15)","v":0},false,false,false,null,{"$f":"\"アンプ\"&$I$15","v":"アンプ"}]
[]
["ポータブルアンプには更に1本の有線マイクが追加できます。"]
["追加","ダイナミックマイク",null,null,null,null,"１本",350,null,null,null,"A","P","N",{"$f":"IF(I18=\"\",\"\",H18*I18*U18)","v":""},null,{"$f":"\"ダイナ\"&$I$18","v":"ダイナ"},{"$f":"IF(V18,1)","v":false},false,false,{"$f":"SUM(R18:T18)","v":0},false,false,false,null,{"$f":"\"ダイナ\"&$I$18","v":"ダイナ"}]
["マイクの使用は、最大3本までとなります。マイクスタンド（長・短）が必要な場合は、お申し付けください。"]
[]
[]
["●スライド、カセット、ビデオ、DVDなどの音響・映像機器"]
["追加","プロジェクター＋スクリーン",null,null,null,null,"１セット",590,null,null,null,"A","P","N",{"$f":"IF(I23=\"\",\"\",H23*I23*U23)","v":""},null,{"$f":"\"VP,SC\"&$I$23","v":"VP,SC"},{"$f":"IF(V23,1)","v":false},false,false,{"$f":"SUM(R23:T23)","v":0},false,false,false,null,{"$f":"\"VP,SC\"&$I$23","v":"VP,SC"}]
["追加","ビデオ（モニター付き）",null,null,null,null,"１台",470,null,null,null,"A","P","N",{"$f":"IF(I24=\"\",\"\",H24*I24*U24)","v":""},null,{"$f":"\"ビデオ\"&$I$24","v":"ビデオ"},false,false,false,0,false,false,false,null,{"$f":"\"ビデオ\"&$I$24","v":"ビデオ"}]
["追加","書画カメラ",null,null,null,null,"１台",230,null,null,null,"A","P","N",{"$f":"IF(I25=\"\",\"\",H25*I25*U25)","v":""},null,{"$f":"\"書画\"&$I$25","v":"書画"},false,false,false,0,false,false,false,null,{"$f":"\"書画\"&$I$25","v":"書画"}]
["常設","スクリーンのみ",null,null,null,null,"１台",130,null,null,null,"A","P","N",{"$f":"IF(I26=\"\",\"\",H26*I26*U26)","v":""},null,{"$f":"\"SC\"&$I$26","v":"SC"},false,false,false,0,false,false,false,null,{"$f":"\"SC\"&$I$26","v":"SC"}]
[]
["●追加の備品　"]
["各会議室とも標準仕様の他に机・椅子の追加が可能です、但し各部屋に追加可能の上限がありますので"]
["詳しくはスタッフまでお問合せください。"]
["追加","会議机",null,null,null,null,"1脚",120,null,null,null,"A","P","N",{"$f":"IF(I31=\"\",\"\",H31*I31*U31)","v":""},null,{"$f":"\"机\"&$I$31","v":"机"},{"$f":"IF(V31,1)","v":false},false,false,{"$f":"SUM(R31:T31)","v":0},false,false,false,null,{"$f":"\"机\"&$I$31","v":"机"}]
["追加","会議椅子",null,null,null,null,"1脚",60,null,null,null,"A","P","N",{"$f":"IF(I32=\"\",\"\",H32*I32*U32)","v":""},null,{"$f":"\"椅子\"&$I$32","v":"椅子"},false,false,false,0,false,false,false,null,{"$f":"\"椅子\"&$I$32","v":"椅子"}]
[]
["●その他の備品"]
["追加","展示パネル",null,null,null,null,"１枚",110,null,null,null,"A","P","N",{"$f":"IF(I35=\"\",\"\",H35*I35*U35)","v":""},null,{"$f":"\"展パネ\"&$I$35","v":"展パネ"},{"$f":"IF(V35,1)","v":false},false,false,{"$f":"SUM(R35:T35)","v":0},false,false,false,null,{"$f":"\"展パネ\"&$I$35","v":"展パネ"}]
["追加","可動式ホワイトボード（コピー白板含む）",null,null,null,null,"1台",320,null,null,null,"A","P","N",{"$f":"IF(I36=\"\",\"\",H36*I36*U36)","v":""},null,{"$f":"\"WB\"&$I$36","v":"WB"},false,false,false,0,false,false,false,null,{"$f":"\"WB\"&$I$36","v":"WB"}]
[null,null,null,null,null,null,null,null,null,null,null,null,null,"合計",{"$f":"SUM(O12:P36)","v":0}]
[]
["●その他 無料貸し出し品"]
["追加","卓上マイクスタンド",null,null,null,null,"本","無料",null,null,null,null,"備考",null,null,null,{"$f":"\"スタンド短\"&$I$40","v":"スタンド短"},null,null,null,null,null,null,null,null,{"$f":"\"スタンド短\"&$I$40","v":"スタンド短"}]
["追加","マイクスタンド",null,null,null,null,"本","無料",null,null,null,null,null,null,null,null,{"$f":"\"スタンド長\"&$I$41","v":"スタンド長"},null,null,null,null,null,null,null,null,{"$f":"\"スタンド長\"&$I$41","v":"スタンド長"}]
["追加","延長コード（テーブルタップ）",null,null,null,null,"本","無料",null,null,null,null,null,null,null,null,{"$f":"\"延コ\"&$I$42","v":"延コ"},null,null,null,null,null,null,null,null,{"$f":"\"延コ\"&$I$42","v":"延コ"}]
["追加","プロジェクター台",null,null,null,null,"台","無料",null,null,null,null,null,null,null,null,{"$f":"\"VP台\"&$I$43","v":"VP台"},null,null,null,null,1,null,null,null,{"$f":"\"VP台\"&$I$43","v":"VP台"}]
["追加","HDMIケーブル",null,null,null,null,"本","無料",null,null,null,null,null,null,null,null,{"$f":"\"HDMI\"&$I$44","v":"HDMI"},null,null,null,null,2,null,null,null,{"$f":"\"HDMI\"&$I$44","v":"HDMI"}]
["追加","指し棒",null,null,null,null,"本","無料",null,null,null,null,null,null,null,null,{"$f":"\"指棒\"&$I$45","v":"指棒"},null,null,null,null,3,null,null,null,{"$f":"\"指棒\"&$I$45","v":"指棒"}]
["追加","マグネット（丸）",null,null,null,null,"個","無料",null,null,null,null,null,null,null,null,{"$f":"\"丸マグ\"&$I$46","v":"丸マグ"},null,1,1,1,4,null,null,null,{"$f":"\"丸マグ\"&$I$46","v":"丸マグ"}]
["追加","マグネット（棒）",null,null,null,null,"本","無料",null,null,null,null,null,null,null,null,{"$f":"\"棒マグ\"&$I$47","v":"棒マグ"},null,null,2,2,5,null,null,null,{"$f":"\"棒マグ\"&$I$47","v":"棒マグ"}]
["※付帯設備の利用料については、上記の表に基づいてお支払いください。",null,null,null,null,null,null,null,null,null,null,null,null,null,null,null,null,null,null,null,3,6]
["　 尚、事前のお支払いでも当日追加変更があった場合現金でお支払いください。",null,null,null,null,null,null,null,null,null,null,null,null,null,null,null,null,null,null,null,null,7]
["※パソコンとプロジェクターの接続は、ミニD-sub15ピン及びHDMIで可能です。",null,null,null,null,null,null,null,null,null,null,null,null,null,"受　付",null,null,null,null,null,null,8]
["　 またパソコンの貸し出しは行っておりません。",null,null,null,null,null,null,null,null,null,null,null,null,null,null,null,null,null,null,null,null,9]
["※お申込みの追加備品につきましては、数に制約がありご要望に添えない場合が"]
["　 ありますのでご了承ください。",null,null,null,null,null,null,null,null,null,null,null,null,null,null,null,null,null,"曜日","年","月","日"]
["※各会議室にはバトンを設置しておりません。",null,null,null,null,null,null,null,null,null,null,null,null,null,null,null,null,null,"（月）",2025,1,1]
["※各部屋で使用できる電気容量には上限がございますので、消費電力量の",null,null,null,null,null,null,null,null,null,null,null,null,null,null,null,null,null,"（火）",2026,2,2]
["　 大きい機器類をお持ち込の際には、必ず事前にお申し出ください。",null,null,null,null,null,null,null,null,null,null,null,null,null,null,null,null,null,"（水）",2027,3,3]
[null,null,null,null,null,null,null,null,null,null,null,null,null,null,null,null,null,null,"（木）",2028,4,4]
[null,null,null,null,null,null,null,null,null,null,null,null,null,null,null,null,null,null,"（金）",null,5,5]
[null,null,null,null,null,null,null,null,null,null,null,null,null,null,null,null,null,null,"（土）",null,6,6]
[null,null,null,null,null,null,null,null,null,null,null,null,null,null,null,null,null,null,"（日）",null,7,7]
[null,null,null,null,null,null,null,null,null,null,null,null,null,null,null,null,null,null,null,null,8,8]
[null,null,null,null,null,null,null,null,null,null,null,null,null,null,null,null,null,null,null,null,9,9]
[null,null,null,null,null,null,null,null,null,null,null,null,null,null,null,null,null,null,null,null,10,10]
[null,null,null,null,null,null,null,null,null,null,null,null,null,null,null,null,null,null,null,null,11,11]
[null,null,null,null,null,null,null,null,null,null,null,null,null,null,null,null,null,null,null,null,12,12]
[null,null,null,null,null,null,null,null,null,null,null,null,null,null,null,null,null,null,null,null,null,13]
[null,null,null,null,null,null,null,null,null,null,null,null,null,null,null,null,null,null,null,null,null,14]
[null,null,null,null,null,null,null,null,null,null,null,null,null,null,null,null,null,null,null,null,null,15]
[null,null,null,null,null,null,null,null,null,null,null,null,null,null,null,null,null,null,null,null,null,16]
[null,null,null,null,null,null,null,null,null,null,null,null,null,null,null,null,null,null,null,null,null,17]
[null,null,null,null,null,null,null,null,null,null,null,null,null,null,null,null,null,null,null,null,null,18]
[null,null,null,null,null,null,null,null,null,null,null,null,null,null,null,null,null,null,null,null,null,19]
[null,null,null,null,null,null,null,null,null,null,null,null,null,null,null,null,null,null,null,null,null,20]
[null,null,null,null,null,null,null,null,null,null,null,null,null,null,null,null,null,null,null,null,null,21]
[null,null,null,null,null,null,null,null,null,null,null,null,null,null,null,null,null,null,null,null,null,22]
[null,null,null,null,null,null,null,null,null,null,null,null,null,null,null,null,null,null,null,null,null,23]
[null,null,null,null,null,null,null,null,null,null,null,null,null,null,null,null,null,null,null,null,null,24]
[null,null,null,null,null,null,null,null,null,null,null,null,null,null,null,null,null,null,null,null,null,25]
[null,null,null,null,null,null,null,null,null,null,null,null,null,null,null,null,null,null,null,null,null,26]
[null,null,null,null,null,null,null,null,null,null,null,null,null,null,null,null,null,null,null,null,null,27]
[null,null,null,null,null,null,null,null,null,null,null,null,null,null,null,null,null,null,null,null,null,28]
[null,null,null,null,null,null,null,null,null,null,null,null,null,null,null,null,null,null,null,null,null,29]
[null,null,null,null,null,null,null,null,null,null,null,null,null,null,null,null,null,null,null,null,null,30]
[null,null,null,null,null,null,null,null,null,null,null,null,null,null,null,null,null,null,null,null,null,31]